bitfinex-derivatives/quotes_BTCF0:USTF0_20210708
["timestamp","ask_amount","ask_price","bid_price","bid_amount"]
[1625748377420,1.0,32735.0,32734.0,0.24057544]
[1625748377870,1.24057544,32735.0,32734.0,0.24057544]
[1625748378996,0.24057544,32735.0,32734.0,0.24057544]
[1625748379298,0.24057544,32735.0,32734.0,1.48008626]
[1625748379449,1.24057544,32735.0,32734.0,5.84088626]
[1625748379598,1.24057544,32735.0,32734.0,4.60137544]
[1625748379747,0.24057544,32735.0,32734.0,4.60137544]
[1625748380049,0.24057544,32735.0,32734.0,5.84124808]
[1625748380203,0.24057544,32735.0,32734.0,1.48044808]
[1625748380500,1.24057544,32735.0,32734.0,1.48044808]
[1625748380801,0.24057544,32735.0,32734.0,0.24057544]
[1625748383883,0.24057544,32735.0,32734.0,0.53593544]
[1625748384028,1.53875923,32738.0,32734.0,1.79257379]
[1625748384029,0.17935508,32738.0,32734.0,1.79257379]
[1625748384177,0.53729327,32739.0,32735.0,1.25662047]
[1625748384477,0.17876228,32739.0,32736.0,1.25661235]
[1625748384777,0.53622406,32740.0,32737.0,5.3379]
[1625748384927,0.17875467,32739.0,32737.0,5.3379]
[1625748385228,0.53634895,32740.0,32737.0,5.3379]
[1625748385679,0.17861104,32741.0,32738.0,1.2565849]
[1625748385984,0.53641713,32743.0,32740.0,1.49711614]
[1625748386129,1.07229819,32746.0,32740.0,1.49711614]
[1625748386130,0.35771941,32746.0,32742.0,1.97446367]
[1625748386279,0.35771941,32746.0,32742.0,2.26272367]
[1625748386430,0.89460285,32747.0,32745.0,0.71797827]
[1625748386729,0.35811312,32747.0,32746.0,0.71796959]
[1625748387179,0.89661778,32748.0,32746.0,0.71796959]
[1625748387330,0.89661778,32748.0,32747.0,0.71819916]
[1625748387780,0.53765978,32748.0,32747.0,0.71819916]
[1625748387930,0.53765978,32748.0,32747.0,1.19935004]
[1625748388683,1.53765978,32748.0,32747.0,1.19935004]
[1625748388833,2.25584581,32748.0,32747.0,0.48115088]
[1625748388987,3.51243639,32748.0,32747.0,0.48115088]
[1625748389284,2.51243639,32748.0,32747.0,0.48115088]
[1625748389435,1.25584581,32748.0,32747.0,0.48115088]
[1625748389585,2.25584581,32748.0,32747.0,0.48115088]
[1625748389736,3.51331795,32748.0,32747.0,0.48115088]
[1625748391166,4.94825045,32748.0,32747.0,0.48115088]
[1625748391914,5.18882589,32748.0,32742.0,0.057]
[1625748392065,7.10977553,32748.0,32740.0,0.95933597]
[1625748392214,1.25242165,32741.0,32740.0,0.95933597]
[1625748392364,1.57156165,32741.0,32740.0,0.95933597]
[1625748392892,1.57156165,32741.0,32740.0,0.24057544]
[1625748393344,2.57156165,32741.0,32740.0,0.24057544]
[1625748393941,2.81213709,32741.0,32740.0,0.24057544]
[1625748395369,2.81213709,32741.0,32738.0,0.24057544]
[1625748395520,4.06072236,32741.0,32738.0,0.24057544]
[1625748395670,1.2488166,32739.0,32738.0,0.24057544]
[1625748395972,1.48939204,32739.0,32738.0,0.24057544]
[1625748396272,2.48939204,32739.0,32738.0,0.24057544]
[1625748397321,2.48939204,32739.0,32738.0,0.95982919]
[1625748397773,2.48939204,32739.0,32738.0,0.71925375]
[1625748397923,3.8245806,32739.0,32737.0,0.71929862]
[1625748398224,3.90622436,32738.0,32732.0,1.62260949]
[1625748398373,1.24057544,32739.0,32732.0,1.62260949]
[1625748398374,1.2422055,32733.0,32732.0,1.62260949]
[1625748398522,1.2422055,32733.0,32732.0,0.71940949]
[1625748398523,1.4859255,32733.0,32732.0,0.71940949]
[1625748398673,2.4859255,32733.0,32732.0,0.71940949]
[1625748399352,1.4859255,32733.0,32732.0,0.71940949]
[1625748399501,2.4859255,32733.0,32732.0,0.71940949]
[1625748399955,2.72650094,32733.0,32732.0,0.71940949]
[1625748400253,2.72650094,32733.0,32731.0,0.95964702]
[1625748400557,0.53138508,32732.0,32731.0,0.95964702]
[1625748400714,1.53138508,32732.0,32731.0,0.95964702]
[1625748401005,1.88568517,32732.0,32731.0,0.95964702]
[1625748401307,1.0,32732.0,32731.0,0.95964702]
[1625748401682,0.83862294,32733.0,32731.0,0.95964702]
[1625748401828,1.0,32732.0,32731.0,0.95964702]
[1625748401979,1.0,32732.0,32731.0,0.24057544]
[1625748402281,1.0,32732.0,32731.0,2.21733416]
[1625748402753,0.24057544,32733.0,32731.0,2.21733416]
[1625748403030,0.24057544,32733.0,32732.0,0.7188106]
[1625748403331,0.24057544,32733.0,32732.0,1.97655044]
[1625748403481,1.0,32734.0,32732.0,1.97655044]
[1625748403630,1.0,32734.0,32732.0,0.7188106]
[1625748403781,1.35348308,32735.0,32733.0,0.71870209]
[1625748404081,1.0,32735.0,32734.0,0.95927802]
[1625748404234,0.88327177,32736.0,32734.0,0.95927802]
[1625748404383,0.52886486,32735.0,32734.0,0.24057544]
[1625748404534,1.49836724,32735.0,32734.0,0.24057544]
[1625748404682,2.49836724,32735.0,32734.0,0.24057544]
[1625748404982,1.49836724,32735.0,32734.0,0.24057544]
[1625748405133,0.79323486,32735.0,32734.0,0.24057544]
[1625748405433,0.26437,32735.0,32734.0,0.95920905]
[1625748405583,0.88233231,32736.0,32734.0,0.95920905]
[1625748405732,1.0,32735.0,32734.0,0.95920905]
[1625748405883,1.8815063,32735.0,32734.0,0.24057544]
[1625748406033,2.12208174,32735.0,32734.0,0.24057544]
[1625748406258,1.59321321,32735.0,32734.0,0.24057544]
[1625748406565,1.24057544,32735.0,32734.0,0.95924543]
[1625748407162,1.58912612,32735.0,32734.0,0.24057544]
[1625748408062,1.24057544,32735.0,32734.0,0.24057544]
[1625748409645,0.24057544,32735.0,32734.0,0.24057544]
[1625748409941,1.24057544,32735.0,32734.0,0.95915716]
[1625748411368,0.24057544,32735.0,32734.0,0.95915716]
[1625748411519,1.24057544,32735.0,32734.0,0.95915716]
[1625748411822,1.24057544,32735.0,32734.0,0.24057544]
[1625748412304,1.24057544,32735.0,32729.0,0.71867252]
[1625748412305,2.445438,32735.0,32729.0,0.71867252]
[1625748412430,2.445438,32735.0,32729.0,0.30487252]
[1625748412572,0.86031028,32731.0,32726.0,0.24057544]
[1625748412727,1.07778028,32731.0,32726.0,0.24057544]
[1625748412871,0.34318014,32730.0,32726.0,0.24057544]
[1625748413473,1.07596124,32731.0,32726.0,0.24057544]
[1625748413624,1.0,32727.0,32726.0,0.24057544]
[1625748413997,1.24057544,32727.0,32726.0,0.24057544]
[1625748414299,0.24057544,32727.0,32726.0,0.24057544]
[1625748414905,1.24057544,32727.0,32726.0,0.24057544]
[1625748415651,0.24057544,32727.0,32726.0,0.24057544]
[1625748415951,1.24057544,32727.0,32726.0,0.24057544]
[1625748416100,6.44247544,32727.0,32726.0,0.24057544]
[1625748418374,6.95745281,32727.0,32726.0,0.24057544]
[1625748418651,7.30101873,32727.0,32726.0,0.24057544]
[1625748418950,6.78604136,32727.0,32726.0,0.24057544]
[1625748419101,7.3018162,32727.0,32726.0,0.24057544]
[1625748419400,6.78604136,32727.0,32721.0,1.0777109]
[1625748419551,6.44247544,32727.0,32721.0,1.0777109]
[1625748419778,1.0,32722.0,32721.0,1.0777109]
[1625748419925,1.32417,32722.0,32721.0,1.0777109]
[1625748420076,1.56474544,32722.0,32721.0,1.0777109]
[1625748420226,1.56474544,32722.0,32720.0,1.31784567]
[1625748420526,1.56474544,32722.0,32721.0,1.07726884]
[1625748420826,0.56474544,32722.0,32721.0,1.07726884]
[1625748421126,1.56474544,32722.0,32721.0,1.07726884]
[1625748421426,0.56474544,32722.0,32721.0,1.07726884]
[1625748421577,1.56474544,32722.0,32721.0,1.07726884]
[1625748422028,1.56474544,32722.0,32721.0,2.33429788]
[1625748422331,1.56474544,32722.0,32721.0,1.07726884]
[1625748423078,1.56474544,32722.0,32720.0,1.31807423]
[1625748423378,1.56474544,32722.0,32721.0,1.07768957]
[1625748423527,0.56474544,32722.0,32721.0,1.07768957]
[1625748424129,1.56474544,32722.0,32721.0,1.07768957]
[1625748424283,1.56474544,32722.0,32720.0,1.49787994]
[1625748424284,1.56474544,32722.0,32720.0,1.31789754]
[1625748424579,1.56474544,32722.0,32720.0,0.24057544]
[1625748424729,1.0,32721.0,32720.0,0.24057544]
[1625748426156,1.24057544,32721.0,32720.0,0.24057544]
[1625748429383,0.24057544,32721.0,32720.0,0.24057544]
[1625748429532,1.24057544,32721.0,32720.0,0.24057544]
[1625748429832,1.02157544,32721.0,32720.0,0.24057544]
[1625748430435,1.1073176,32721.0,32720.0,0.24057544]
[1625748430582,0.1073176,32721.0,32720.0,0.24057544]
[1625748430732,1.1073176,32721.0,32720.0,0.24057544]
[1625748432083,1.02157544,32721.0,32720.0,0.24057544]
[1625748433287,0.02157544,32721.0,32720.0,0.24057544]
[1625748433434,1.02157544,32721.0,32720.0,0.24057544]
[1625748434486,0.02157544,32721.0,32720.0,0.24057544]
[1625748434636,1.02157544,32721.0,32720.0,0.24057544]
[1625748436138,0.02157544,32721.0,32720.0,0.24057544]
[1625748436288,0.02157544,32721.0,32720.0,0.51049544]
[1625748438090,0.02157544,32721.0,32720.0,0.75107088]
[1625748438392,0.02157544,32721.0,32720.0,1.82710209]
[1625748438841,0.48115088,32727.0,32720.0,1.82710209]
[1625748438991,0.24057544,32727.0,32720.0,1.82710209]
[1625748439141,0.24057544,32727.0,32724.0,1.07602843]
[1625748439290,1.24057544,32727.0,32724.0,1.07602843]
[1625748439592,0.24057544,32727.0,32725.0,1.07599746]
[1625748439892,0.24057544,32727.0,32723.0,1.0760076]
[1625748440191,0.24057544,32727.0,32726.0,0.24057544]
[1625748443117,0.24057544,32727.0,32726.0,1.31665753]
[1625748443719,0.24057544,32727.0,32726.0,0.24057544]
[1625748443870,1.24057544,32727.0,32726.0,0.24057544]
[1625748446421,1.6737064,32727.0,32726.0,0.24057544]
[1625748446570,1.3273055,32727.0,32726.0,0.24057544]
[1625748446870,1.24057544,32727.0,32726.0,0.24057544]
[1625748447245,1.32740247,32727.0,32726.0,0.24057544]
[1625748447395,0.32740247,32727.0,32726.0,0.24057544]
[1625748447695,1.32740247,32727.0,32726.0,0.24057544]
[1625748447846,1.58741075,32727.0,32726.0,0.24057544]
[1625748447996,1.24057544,32727.0,32726.0,0.24057544]
[1625748448145,2.10145238,32727.0,32726.0,0.24057544]
[1625748448298,2.44685395,32727.0,32726.0,0.24057544]
[1625748448612,1.92718701,32727.0,32726.0,0.24057544]
[1625748448747,1.58178544,32727.0,32726.0,0.24057544]
[1625748449495,1.58178544,32727.0,32723.0,1.07720887]
[1625748449796,1.66727416,32727.0,32722.0,1.07777181]
[1625748450097,1.0,32723.0,32722.0,1.07777181]
[1625748450396,0.66727416,32727.0,32722.0,1.07777181]
[1625748450546,0.32606416,32727.0,32722.0,1.07777181]
[1625748451299,0.08516006,32726.0,32722.0,1.07777181]
[1625748452278,0.08516006,32726.0,32725.0,0.24057544]
[1625748452426,0.66575753,32727.0,32725.0,0.24057544]
[1625748453176,0.08523657,32726.0,32725.0,0.24057544]
[1625748453626,1.08523657,32726.0,32725.0,0.24057544]
[1625748454227,1.40162657,32726.0,32725.0,0.24057544]
[1625748455353,1.74395405,32726.0,32725.0,0.24057544]
[1625748456556,1.82799643,32726.0,32725.0,0.24057544]
[1625748456856,2.84884882,32726.0,32725.0,0.24057544]
[1625748457606,2.84884882,32726.0,32721.0,1.07928683]
[1625748458058,1.08496372,32722.0,32720.0,1.5608771]
[1625748458210,0.41594376,32721.0,32720.0,0.24057544]
[1625748458434,0.67038771,32721.0,32720.0,0.24057544]
[1625748458737,1.17943159,32721.0,32720.0,0.24057544]
[1625748458962,0.67038771,32721.0,32720.0,0.24057544]
[1625748459412,1.67038771,32721.0,32720.0,0.24057544]
[1625748459564,2.17929168,32721.0,32720.0,0.24057544]
[1625748459862,1.83977941,32721.0,32720.0,0.24057544]
[1625748460162,1.67045823,32721.0,32720.0,0.24057544]
[1625748461814,1.75516281,32721.0,32720.0,0.21497544]
[1625748461967,1.75516281,32721.0,32720.0,0.13877544]
[1625748462114,1.75516281,32721.0,32718.0,1.07968822]
[1625748462266,0.24057544,32720.0,32718.0,1.07968822]
[1625748462566,1.0,32719.0,32718.0,1.07968822]
[1625748463089,1.31638,32719.0,32718.0,1.07968822]
[1625748464594,1.31638,32719.0,32717.0,1.07989738]
[1625748464743,1.31638,32719.0,32716.0,1.25987569]
[1625748464744,1.31638,32719.0,32718.0,1.07990372]
[1625748465043,0.31638,32719.0,32717.0,1.07990698]
[1625748465195,0.31638,32719.0,32718.0,1.08009169]
[1625748465344,1.31638,32719.0,32718.0,1.08009169]
[1625748465795,1.31638,32719.0,32718.0,0.95969169]
[1625748465944,2.99828683,32719.0,32715.0,0.24057544]
[1625748466245,4.17202141,32716.0,32715.0,0.24057544]
[1625748466395,4.74949362,32716.0,32715.0,0.24057544]
[1625748466844,4.83348157,32716.0,32715.0,0.24057544]
[1625748467143,5.83348157,32716.0,32715.0,0.24057544]
[1625748467451,5.92428157,32716.0,32715.0,0.24057544]
[1625748467595,5.83348157,32716.0,32715.0,0.24057544]
[1625748470677,6.17256499,32716.0,32715.0,0.24057544]
[1625748470827,6.15020157,32716.0,32715.0,0.24057544]
[1625748472404,6.82790136,32716.0,32715.0,0.24057544]
[1625748475578,8.01328385,32716.0,32715.0,0.24057544]
[1625748476685,9.36754633,32716.0,32715.0,0.24057544]
[1625748477686,7.01328385,32716.0,32715.0,0.24057544]
[1625748477818,8.01328385,32716.0,32715.0,0.24057544]
[1625748480664,6.82790136,32716.0,32715.0,0.24057544]
[1625748480816,6.51118136,32716.0,32715.0,0.24057544]
[1625748481417,2.42348136,32716.0,32715.0,0.24057544]
[1625748482251,1.18290592,32716.0,32715.0,0.24057544]
[1625748482419,1.18290592,32716.0,32715.0,0.48115088]
[1625748482543,0.08456382,32716.0,32715.0,0.48115088]
[1625748482842,0.08469511,32717.0,32715.0,0.48115088]
[1625748483614,0.42315884,32718.0,32715.0,0.48115088]
[1625748483894,0.42410834,32719.0,32715.0,1.2004294]
[1625748484041,0.08492337,32719.0,32716.0,0.71931696]
[1625748484344,0.08492337,32719.0,32718.0,0.24057544]
[1625748484654,0.08490422,32720.0,32718.0,0.24057544]
[1625748484796,0.0849135,32721.0,32718.0,0.95987263]
[1625748485095,0.42419693,32721.0,32718.0,0.24057544]
[1625748485246,0.0849135,32721.0,32718.0,0.95981425]
[1625748485543,0.08497091,32722.0,32719.0,0.71923058]
[1625748485697,0.08497091,32722.0,32719.0,1.03125058]
[1625748486065,0.42438825,32722.0,32719.0,1.03125058]
[1625748486367,0.08471644,32724.0,32721.0,0.48115088]
[1625748487268,0.42278646,32725.0,32721.0,1.20031711]
[1625748488020,0.08424637,32727.0,32724.0,4.4742]
[1625748488318,0.08424637,32727.0,32724.0,5.19337902]
[1625748488469,0.08424637,32727.0,32726.0,0.24057544]
[1625748488621,0.08424637,32727.0,32726.0,0.53237544]
[1625748489221,0.33648101,32728.0,32726.0,0.53237544]
[1625748489222,0.0844389,32728.0,32726.0,0.53237544]
[1625748489522,0.0845493,32727.0,32726.0,0.53237544]
[1625748489670,0.42234478,32728.0,32726.0,0.53237544]
[1625748489973,0.08465386,32728.0,32726.0,0.53237544]
[1625748490420,0.66319565,32729.0,32727.0,0.24057544]
[1625748491024,1.32513809,32729.0,32727.0,0.24057544]
[1625748491169,1.66245255,32729.0,32727.0,0.24057544]
[1625748492072,1.32513809,32729.0,32727.0,0.24057544]
[1625748492221,0.32513809,32729.0,32727.0,0.24057544]
[1625748492373,0.24057544,32729.0,32727.0,0.24057544]
[1625748492672,0.08442499,32730.0,32727.0,0.24057544]
[1625748492822,0.08442499,32730.0,32728.0,0.71910626]
[1625748492971,0.32505812,32732.0,32728.0,0.71910626]
[1625748493122,0.32505812,32732.0,32727.0,0.24057544]
[1625748493123,0.24057544,32732.0,32729.0,0.71907282]
[1625748493424,0.32504599,32732.0,32728.0,0.71898896]
[1625748493574,0.24057544,32732.0,32728.0,0.71898896]
[1625748493872,0.3251233,32732.0,32728.0,0.71898896]
[1625748494024,0.08454786,32732.0,32728.0,0.71898896]
[1625748494178,0.33737637,32733.0,32727.0,0.24057544]
[1625748494179,0.33727423,32729.0,32727.0,0.24057544]
[1625748494327,0.42153681,32728.0,32727.0,0.24057544]
[1625748494624,0.42208745,32733.0,32727.0,0.95953435]
[1625748494776,0.08447171,32732.0,32728.0,0.71896176]
[1625748495321,0.08449212,32734.0,32730.0,0.71881138]
[1625748495453,0.08449212,32734.0,32730.0,1.07292138]
[1625748495606,0.08446233,32733.0,32730.0,0.35411]
[1625748495753,0.42183085,32734.0,32730.0,0.35411]
[1625748496057,0.0844873,32734.0,32730.0,0.35411]
[1625748496203,0.42186074,32734.0,32730.0,0.35411]
[1625748496430,0.42186074,32734.0,32733.0,0.24057544]
[1625748496729,0.0844873,32734.0,32733.0,0.24057544]
[1625748496880,0.42177792,32734.0,32733.0,0.24057544]
[1625748497182,0.0844873,32734.0,32733.0,0.24057544]
[1625748497407,0.42175048,32734.0,32733.0,0.24057544]
[1625748497637,0.0844873,32734.0,32733.0,0.24057544]
[1625748497932,0.42241462,32734.0,32733.0,0.24057544]
[1625748499061,0.0844873,32734.0,32733.0,0.24057544]
[1625748499211,0.08473767,32735.0,32733.0,0.24057544]
[1625748500411,0.08459501,32736.0,32733.0,0.24057544]
[1625748500561,0.08459501,32736.0,32734.0,0.24057544]
[1625748501687,0.33787346,32737.0,32734.0,0.24057544]
[1625748501688,0.42246859,32737.0,32734.0,0.24057544]
[1625748501989,0.08459513,32737.0,32734.0,0.24057544]
[1625748502138,0.08457841,32736.0,32734.0,0.24057544]
[1625748502438,0.42239273,32737.0,32735.0,0.24057544]
[1625748502663,0.08457278,32736.0,32735.0,0.24057544]
[1625748503414,0.08467879,32737.0,32735.0,0.24057544]
[1625748503726,0.42332053,32737.0,32735.0,0.24057544]
[1625748503864,0.0848274,32736.0,32735.0,0.24057544]
[1625748504467,0.08481909,32737.0,32735.0,0.24057544]
[1625748505667,0.42363063,32737.0,32735.0,0.24057544]
[1625748506266,0.08482488,32736.0,32735.0,0.24057544]
[1625748507019,0.33866334,32736.0,32735.0,0.24057544]
[1625748507319,0.50816722,32736.0,32735.0,0.24057544]
[1625748507619,1.18629024,32736.0,32735.0,0.24057544]
[1625748508069,0.50816722,32736.0,32735.0,0.24057544]
[1625748508220,0.84742333,32736.0,32735.0,0.24057544]
[1625748508522,0.33925611,32736.0,32735.0,0.24057544]
[1625748508671,1.50872321,32736.0,32735.0,0.24057544]
[1625748508820,1.81270321,32736.0,32735.0,0.24057544]
[1625748509272,2.1519362,32736.0,32735.0,0.24057544]
[1625748509421,1.64321299,32736.0,32735.0,0.24057544]
[1625748509572,0.64321299,32736.0,32735.0,0.24057544]
[1625748509872,0.38894395,32736.0,32735.0,0.24057544]
[1625748510021,0.08496395,32736.0,32735.0,0.24057544]
[1625748510847,0.42454928,32736.0,32735.0,0.24057544]
[1625748511000,0.70799928,32736.0,32729.0,0.71797059]
[1625748511171,2.4713168,32736.0,32727.0,0.71796863]
[1625748511450,2.4713168,32736.0,32722.0,0.9922]
[1625748511451,0.0848595,32728.0,32722.0,1.71025747]
[1625748511602,0.72940523,32728.0,32722.0,0.9922]
[1625748511897,1.0,32723.0,32722.0,0.9922]
[1625748512049,1.0,32723.0,32718.0,0.71814674]
[1625748512350,1.0,32723.0,32717.0,1.07722011]
[1625748512351,1.0,32723.0,32717.0,0.7181743]
[1625748512497,1.0,32723.0,32722.0,0.24057544]
[1625748513331,1.42372118,32723.0,32722.0,0.24057544]
[1625748513622,1.33887533,32723.0,32722.0,0.24057544]
[1625748514147,1.42374134,32723.0,32722.0,0.24057544]
[1625748514449,0.42374134,32723.0,32722.0,0.24057544]
[1625748514599,0.33887533,32723.0,32713.0,0.13360768]
[1625748514751,0.08474182,32717.0,32709.0,1.07748045]
[1625748514901,0.0907,32716.0,32709.0,1.07748045]
[1625748515081,0.0907,32716.0,32698.0,1.43688915]
[1625748515082,0.33771565,32710.0,32698.0,1.43688915]
[1625748515223,1.57282565,32710.0,32698.0,1.43688915]
[1625748515366,1.57282565,32710.0,32694.0,0.9931]
[1625748515367,0.42194386,32708.0,32696.0,1.43680628]
[1625748515506,1.0,32706.0,32696.0,1.43680628]
[1625748515650,1.0,32706.0,32694.0,0.9931]
[1625748515651,1.0,32706.0,32697.0,1.4367662]
[1625748515806,1.0,32705.0,32697.0,1.4367662]
[1625748516101,0.08449885,32708.0,32694.0,0.9931]
[1625748516102,1.0,32704.0,32694.0,2.42934053]
[1625748516401,1.0,32701.0,32695.0,1.43623548]
[1625748516557,0.24057544,32697.0,32696.0,0.24057544]
[1625748517457,0.24057544,32697.0,32695.0,6.27513548]
[1625748517614,0.24057544,32697.0,32695.0,1.43623548]
[1625748517752,1.0,32696.0,32695.0,1.43623548]
[1625748517901,1.0,32696.0,32691.0,1.61577059]
[1625748517902,1.0,32696.0,32694.0,1.43608597]
[1625748518051,0.24057544,32697.0,32694.0,1.43608597]
[1625748518202,0.24057544,32697.0,32693.0,1.43539467]
[1625748518503,0.24057544,32694.0,32693.0,1.43539467]
[1625748520605,0.24057544,32694.0,32693.0,1.91654555]
[1625748523306,0.24057544,32694.0,32693.0,5.73134555]
[1625748523605,0.24057544,32694.0,32693.0,5.25019467]
[1625748523755,1.24057544,32694.0,32693.0,5.25019467]
[1625748523906,1.24057544,32694.0,32693.0,3.8148]
[1625748524730,0.24057544,32694.0,32693.0,3.8148]
[1625748532086,0.52542544,32694.0,32693.0,3.8148]
[1625748532386,1.52542544,32694.0,32693.0,3.8148]
[1625748533138,0.52542544,32694.0,32693.0,3.8148]
[1625748533293,0.24057544,32694.0,32693.0,3.8148]
[1625748533742,1.24057544,32694.0,32693.0,3.8148]
[1625748534040,0.24057544,32694.0,32693.0,3.8148]
[1625748535391,1.24057544,32694.0,32693.0,3.8148]
[1625748536293,0.24057544,32694.0,32693.0,3.8148]
[1625748536440,1.24057544,32694.0,32693.0,3.8148]
[1625748536741,0.24057544,32694.0,32693.0,3.8148]
[1625748538317,1.24057544,32694.0,32693.0,3.8148]
[1625748538468,0.24057544,32694.0,32693.0,3.8148]
[1625748538617,1.24057544,32694.0,32693.0,3.8148]
[1625748538768,0.24057544,32694.0,32693.0,3.8148]
[1625748540568,1.24057544,32694.0,32693.0,3.8148]
[1625748541919,0.24057544,32694.0,32693.0,3.8148]
[1625748542220,0.24057544,32694.0,32690.0,0.34211]
[1625748542393,0.49367544,32694.0,32687.0,1.25153702]
[1625748542590,0.49367544,32694.0,32681.0,1.25140662]
[1625748542591,1.49367544,32694.0,32681.0,1.25140662]
[1625748542851,1.49367544,32694.0,32683.0,0.7929]
[1625748542867,0.72172632,32684.0,32683.0,0.6553]
[1625748542968,0.72172632,32684.0,32683.0,0.6187]
[1625748542969,4.75040632,32684.0,32683.0,0.6187]
[1625748543120,4.75040632,32684.0,32683.0,0.3769]
[1625748543270,5.75040632,32684.0,32676.0,1.39695137]
[1625748543573,5.75040632,32684.0,32676.0,1.35165137]
[1625748543721,1.0,32677.0,32676.0,0.95555137]
[1625748543872,1.0,32677.0,32670.0,0.057]
[1625748543873,1.34705,32677.0,32670.0,0.057]
[1625748544024,1.34705,32677.0,32667.0,1.43072051]
[1625748544171,1.34705,32677.0,32661.0,0.9716]
[1625748544172,1.34705,32677.0,32664.0,1.43049605]
[1625748544322,1.0,32671.0,32665.0,0.057]
[1625748544473,1.0,32671.0,32662.0,1.42866488]
[1625748544622,1.0,32671.0,32661.0,2.4003012]
[1625748544771,0.48115088,32664.0,32661.0,2.4003012]
[1625748544922,0.48115088,32664.0,32661.0,1.4287012]
[1625748545673,0.48115088,32664.0,32662.0,1.42868298]
[1625748545822,0.48115088,32664.0,32661.0,1.42836409]
[1625748546124,0.48115088,32664.0,32658.0,1.4838424]
[1625748548001,0.48115088,32664.0,32658.0,0.057]
[1625748548302,0.48115088,32664.0,32657.0,0.24057544]
[1625748548635,0.48115088,32664.0,32653.0,0.29757544]
[1625748548636,1.48115088,32664.0,32653.0,0.057]
[1625748548764,0.48115088,32654.0,32653.0,0.057]
[1625748548904,0.77587088,32654.0,32650.0,0.24057544]
[1625748549504,1.0,32653.0,32650.0,0.24057544]
[1625748549655,0.77587088,32654.0,32650.0,0.24057544]
[1625748549955,1.77587088,32654.0,32650.0,0.24057544]
[1625748550107,0.77587088,32654.0,32650.0,0.24057544]
[1625748550706,1.0,32653.0,32651.0,0.24057544]
[1625748550857,0.48115088,32654.0,32651.0,0.24057544]
[1625748553571,0.24057544,32658.0,32651.0,0.24057544]
[1625748553716,0.24057544,32664.0,32651.0,0.24057544]
[1625748553866,0.24057544,32664.0,32651.0,0.29757544]
[1625748554314,1.0,32661.0,32651.0,0.29757544]
[1625748554461,1.24057544,32664.0,32651.0,0.24057544]
[1625748554611,1.24057544,32664.0,32652.0,0.057]
[1625748554760,1.0,32661.0,32657.0,0.24057544]
[1625748554910,1.0,32660.0,32657.0,0.54161544]
[1625748555061,0.24057544,32664.0,32657.0,0.54161544]
[1625748556865,0.24057544,32664.0,32663.0,0.24057544]
[1625748561220,0.24057544,32664.0,32663.0,0.33197544]
[1625748561594,0.24057544,32664.0,32663.0,0.24057544]
[1625748565722,0.24057544,32668.0,32663.0,0.24057544]
[1625748565873,0.24057544,32671.0,32663.0,0.24057544]
[1625748566848,0.24057544,32671.0,32670.0,0.48115088]
[1625748566997,0.24057544,32671.0,32670.0,0.72672088]
[1625748569323,1.24057544,32671.0,32670.0,0.72672088]
[1625748569624,0.24057544,32671.0,32670.0,0.72672088]
[1625748576836,0.24057544,32671.0,32670.0,0.48115088]
[1625748579468,0.24057544,32674.0,32670.0,0.48115088]
[1625748580220,1.0,32671.0,32670.0,0.48115088]
[1625748580411,1.31197,32671.0,32663.0,0.24057544]
[1625748580818,4.8516,32664.0,32663.0,0.24057544]
[1625748580968,5.55584088,32664.0,32663.0,0.24057544]
[1625748582324,5.55584088,32664.0,32660.0,0.24057544]
[1625748582993,0.24057544,32663.0,32660.0,0.24057544]
[1625748583294,1.0,32661.0,32660.0,0.24057544]
[1625748585324,0.24057544,32663.0,32660.0,0.24057544]
[1625748585475,1.0,32661.0,32660.0,0.24057544]
[1625748586373,1.0,32661.0,32656.0,0.24057544]
[1625748587048,0.24057544,32657.0,32656.0,0.24057544]
[1625748587200,1.49839544,32657.0,32656.0,0.24057544]
[1625748587802,1.49839544,32657.0,32653.0,0.24057544]
[1625748588029,0.49839544,32657.0,32653.0,0.24057544]
[1625748588175,1.49839544,32657.0,32653.0,0.24057544]
[1625748588325,1.0,32654.0,32653.0,0.24057544]
[1625748588925,0.49839544,32657.0,32653.0,0.24057544]
[1625748589075,1.24057544,32654.0,32653.0,0.24057544]
[1625748590349,0.24057544,32654.0,32653.0,0.24057544]
[1625748591249,1.24057544,32654.0,32653.0,0.24057544]
[1625748591398,0.24057544,32654.0,32653.0,0.24057544]
[1625748591550,1.45922544,32654.0,32653.0,0.24057544]
[1625748592300,0.45922544,32654.0,32653.0,0.24057544]
[1625748592451,1.45922544,32654.0,32653.0,0.24057544]
[1625748592601,0.45922544,32654.0,32653.0,0.24057544]
[1625748592750,0.24057544,32654.0,32653.0,0.24057544]
[1625748592901,1.24057544,32654.0,32653.0,0.24057544]
[1625748593586,0.24057544,32654.0,32653.0,0.24057544]
[1625748594782,0.24057544,32654.0,32653.0,1.49667176]
[1625748594929,0.24057544,32654.0,32653.0,0.24057544]
[1625748595244,1.24057544,32657.0,32653.0,2.93224136]
[1625748595395,0.24057544,32657.0,32653.0,3.24206136]
[1625748595538,0.24057544,32657.0,32654.0,1.25610153]
[1625748595982,0.24057544,32657.0,32653.0,0.55039544]
[1625748596282,0.24057544,32657.0,32655.0,1.25727281]
[1625748597182,0.24057544,32657.0,32656.0,0.24057544]
[1625748597933,0.24057544,32657.0,32656.0,1.49948711]
[1625748598836,0.24057544,32657.0,32656.0,2.93825101]
[1625748600487,0.24057544,32663.0,32656.0,2.93825101]
[1625748600639,0.24057544,32663.0,32662.0,1.26103318]
[1625748600788,0.24057544,32663.0,32662.0,1.52219318]
[1625748601090,0.24057544,32663.0,32662.0,1.76276862]
[1625748602516,0.24057544,32663.0,32662.0,3.2038863]
[1625748602815,0.24057544,32663.0,32662.0,1.76276862]
[1625748607771,0.24057544,32663.0,32662.0,3.20450919]
[1625748609349,0.24057544,32666.0,32662.0,3.20450919]
[1625748609646,0.24057544,32666.0,32665.0,1.2616588]
[1625748609949,0.24057544,32666.0,32664.0,1.26166323]
[1625748610096,0.24057544,32666.0,32665.0,4.7996]
[1625748610397,0.24057544,32666.0,32665.0,6.06114196]
[1625748611296,0.24057544,32666.0,32665.0,6.3017174]
[1625748612799,0.24057544,32666.0,32665.0,7.74355934]
[1625748616103,0.24057544,32666.0,32665.0,6.3017174]
[1625748616552,0.24057544,32666.0,32665.0,7.74371194]
[1625748616855,0.24057544,32669.0,32665.0,7.74371194]
[1625748617154,0.24057544,32669.0,32667.0,1.26171646]
[1625748617304,0.24057544,32669.0,32668.0,0.24057544]
[1625748625870,0.24057544,32669.0,32668.0,1.81672748]
[1625748626170,0.24057544,32674.0,32668.0,3.2590525]
[1625748626545,0.83609853,32674.0,32670.0,1.26203037]
[1625748626700,0.83609853,32674.0,32668.0,1.99694046]
[1625748626701,1.0,32672.0,32669.0,1.26210776]
[1625748626996,1.59535609,32673.0,32669.0,1.26210776]
[1625748627302,1.59535609,32673.0,32672.0,0.24057544]
[1625748627598,1.25527401,32673.0,32672.0,0.24057544]